Cogmind - Beta 13 @@@ ROGUE MODE // 2024.04.16 @ 21:43:22 Player: Mountinlodge Result: Destroyed by Y-45 Defender with Beam Rifle Performance ------------- Evolutions (2) 1000 Regions Visited (3) 600 Robots Destroyed (41) 205 Value Destroyed (1049) 1049 Prototype IDs (2) 40 Alien Tech Used (0) 0 Bonus (0) 0 TOTAL SCORE: 2894 Bonus ------- None Cogmind --------- Core Integrity 0/550 Matter 292/300 Energy 61/100 System Corruption 0% Temperature Cool (9) Movement Core (50) Location -8/Materials Parts ------- > --- POWER (2) -------- (None) > --- PROPULSION (3) --- (None) > --- UTILITY (3) ------ Terrain Scan Processor > --- WEAPON (3) ------- (None) > --- INVENTORY (5) ---- Reinforced Ion Engine Reinforced Ion Engine Trap Scanner Minigun Minigun Peak State ------------ > --- POWER ------------ Cooled Ion Engine Cooled Ion Engine > --- PROPULSION ------- Improved Aluminum Leg Carbon-fiber Leg Carbon-fiber Leg > --- UTILITY ---------- Improved Cooling System Sensor Array Signal Interpreter > --- WEAPON ----------- Heavy Laser Heavy Laser Heavy Laser > --- INVENTORY -------- Improved Cooling System Trap Scanner Improved Terrain Scanner Heavy Laser [Rating: 33] Favorites ----------- Power Cooled Ion Engine Engine Cooled Ion Engine Power Core Light Nuclear Core Propulsion Light Treads Treads Light Treads Leg Aluminum Leg Utility Signal Interpreter Device Sensor Array Storage Large Storage Unit Processor Signal Interpreter Protection Light Armor Plating Weapon Light Assault Rifle Energy Gun Heavy Laser Ballistic Gun Light Assault Rifle Build | -11 -10 -9 -8 ------- Run | Yrd Mat Mat Mat Slots Evolved 4 | . . 2 2 Power 1 | . . . 1 Propulsion 1 | . . 1 . Utility 1 | . . . 1 Weapon 1 | . . 1 . Parts Attached 49 | 6 3 24 16 Power 7 | 1 1 4 1 Engine 6 | 1 1 3 1 Core 1 | . . 1 . Reactor . | . . . . Propulsion 12 | 2 . 6 4 Treads 3 | 2 . 1 . Leg 9 | . . 5 4 Wheel . | . . . . Hover . | . . . . Flight . | . . . . Utility 14 | 1 2 5 6 Device 5 | . . 1 4 Storage 4 | 1 2 1 . Processor 3 | . . 1 2 Hackware . | . . . . Protection 2 | . . 2 . Artifact . | . . . . Weapon 16 | 2 . 9 5 Energy Gun 5 | . . . 5 Energy Cannon . | . . . . Ballistic Gun 11 | 2 . 9 . Ballistic Cannon . | . . . . Launcher . | . . . . Special Weapon . | . . . . Impact Weapon . | . . . . Slashing Weapon . | . . . . Piercing Weapon . | . . . . Special Melee Weapon . | . . . . Unidentified Prototypes . | . . . . Parts Lost 17 | . . 1 16 Power 2 | . . . 2 Propulsion 5 | . . 1 4 Utility 5 | . . . 5 Weapon 5 | . . . 5 Highest Loss Streak 15 | . . 1 15 To Critical Strikes . | . . . . Average Slot Usage (%) 92 | . 90 97 86 Engine 11 | . 14 6 15 Core 1 | . . 4 . Treads 12 | . 28 11 . Leg 15 | . . 20 22 Device 6 | . . 5 11 Storage 8 | . 19 7 . Processor 6 | . . 5 13 Protection 1 | . . 2 . Energy Gun 6 | . . . 21 Ballistic Gun 21 | . 28 32 1 Naked Turns 12 | . . . 12 Heaviest Build 35 | 14 33 35 31 Greatest Support 60 | 40 40 60 43 Greatest Overweight (x) 2 | . . . 2 Average Overweight (x) . | . . . . Largest Inventory Capacity 15 | 8 15 15 5 Average Capacity 8 | 7 11 8 5 Most Carried 15 | 4 14 15 5 Average Carried 6 | 2 7 8 4 Final Capacity 15 | 8 15 5 5 Final Carried 14 | 4 14 5 5 Class Distribution -------------------- 37% | Mutant 36% | Scavenger-Skirmisher 10% | Gunner 9% | Skirmisher 5% | Scavenger-Tank Dominant Class ---------------- Mutant | -10/Materials Scavenger-Skirmisher | -9/Materials Scavenger-Skirmisher | -8/Materials Resources | -11 -10 -9 -8 ----------- Run | Yrd Mat Mat Mat Matter Collected 1280 | 193 263 704 120 Remotely . | . . . . Salvage Created 1367 | . 296 673 398 Parts 90 | . 24 38 28 Haulers Intercepted 1 | . . 1 . Recyclers Shooed . | . . . . Parts Field Recycled . | . . . . Retrieved Matter . | . . . . Parts Self-Destructed . | . . . . Prevented . | . . . . Kills | -11 -10 -9 -8 ------- Run | Yrd Mat Mat Mat Combat Hostiles Destroyed 37 | . 11 16 10 Guns 36 | . 11 16 9 Classes Destroyed 8 | . 2 4 2 Worker 1 | . . 1 . Builder 1 | . . . 1 Hauler 1 | . . 1 . Watcher 1 | . . 1 . Swarmer 17 | . 6 7 4 Grunt 13 | . 5 4 4 Sentry 6 | . . 5 1 Hunter 1 | . . . 1 Best Kill Streak 7 | . 3 7 6 Combat Bots Only 6 | . 3 6 5 Max Kills in Single Turn 2 | . 1 2 2 Gunslinging 1 | . . 1 . Exploded . | . . . . Melee . | . . . . Uniques/NPCs Destroyed . | . . . . Combat | -11 -10 -9 -8 -------- Run | Yrd Mat Mat Mat Hostile Shots Fired 328 | . 55 108 165 Missed 94 | . 13 38 43 Damage Taken 3113 | . 413 790 1910 Core 748 | . 85 105 558 Absorbed by Shields . | . . . . Regen/Repaired (Parts) 125 | . . 108 17 Core Remaining (%) 79 | 100 66 73 . Volleys Fired 107 | . 27 52 28 Largest 3 | . 2 3 3 Hottest 207 | . 40 66 207 Shots Fired 266 | . 54 156 56 Gun 266 | . 54 156 56 Cannon . | . . . . Launcher . | . . . . Special . | . . . . Kinetic 210 | . 54 156 . Thermal 56 | . . . 56 Explosive . | . . . . Electromagnetic . | . . . . Robot Hit Streak 7 | . 5 7 6 Robot Miss Streak 6 | . 3 5 6 Penetration Max . | . . . . Secondary Targets 7 | . 2 4 1 Max Gunslinging Chain 1 | . 1 1 1 Shots Hit Robots 167 | . 34 100 33 Core Hits 77 | . 15 43 19 Critical Kills . | . . . . Critical Parts Destroyed . | . . . . Critical Strikes 4 | . . 1 3 Burn 3 | . . . 3 Destroy 1 | . . 1 . Melee Attacks . | . . . . Impact . | . . . . Slashing . | . . . . Piercing . | . . . . Sneak Attacks . | . . . . Combat Hostiles . | . . . . Follow-up Attacks . | . . . . Damage Inflicted 2325 | . 439 1100 786 Guns 2318 | . 439 1100 779 Cannons . | . . . . Explosions . | . . . . Melee . | . . . . Ramming 7 | . . . 7 Kinetic 1539 | . 439 1100 . Thermal 779 | . . . 779 Explosive . | . . . . Electromagnetic . | . . . . Impact . | . . . . Slashing . | . . . . Piercing . | . . . . Highest Corruption . | . . . . Average Corruption . | . . . . Corruption Purged . | . . . . Corruption Blocked . | . . . . Overload Shots . | . . . . Overflow Damage . | . . . . Projectiles . | . . . . Explosions . | . . . . Melee . | . . . . Knockbacks . | . . . . Impact . | . . . . Kinetic . | . . . . Secondary . | . . . . Self-Inflicted Damage 3 | . . . 3 Shots . | . . . . Rammed 2 | . . . 2 Targets Rammed 2 | . . . 2 Kicked . | . . . . Crushed . | . . . . Highest Temperature 281 | . 5 143 281 Average Temperature 47 | . 5 25 98 Received Heat Transfer 1107 | . 174 204 729 Siege Activations . | . . . . Robots Corrupted . | . . . . Combat Hostiles . | . . . . Parts Fried . | . . . . Impact Corruptions . | . . . . Robots Melted 1 | . . . 1 Combat Hostiles 1 | . . . 1 Parts Melted 6 | . . . 6 Heat Transferred 1739 | . . . 1739 Parts Sabotaged . | . . . . Parts Stolen . | . . . . Parts Stripped . | . . . . Power Chain Reactions . | . . . . Alert | -11 -10 -9 -8 ------- Run | Yrd Mat Mat Mat Peak Influence 276 | . 244 276 186 Initial 29 | . . 29 . Average 81 | . 93 128 25 Maximum Alert Level 1 | . 1 1 . Low Security (%) 88 | 100 87 77 100 Level 1 11 | . 12 22 . Level 2 . | . . . . Level 3 . | . . . . Level 4 . | . . . . Level 5 . | . . . . High Security . | . . . . Max Security . | . . . . Squads Dispatched 9 | . 3 2 4 Investigation 4 | . 2 1 1 Extermination . | . . . . Reinforcement 5 | . 1 1 3 Assault . | . . . . Garrison . | . . . . Intercept . | . . . . Searches Triggered . | . . . . Construction Impeded . | . . . . Haulers Reinforced . | . . . . Active Scanning Responses . | . . . . Cargo Convoy Interrupts . | . . . . Stealth | -11 -10 -9 -8 --------- Run | Yrd Mat Mat Mat Distress Signals 3 | . . 1 2 Communications Jammed . | . . . . Distress Signals . | . . . . Times Spotted 57 | . 14 19 24 Peak Tracking Total 10 | . 3 7 10 Tactical Retreats 3 | . 1 . 2 Traps | -11 -10 -9 -8 ------- Run | Yrd Mat Mat Mat Traps Triggered 3 | . 2 . 1 Indirectly . | . . . . Trap Hack Attempts . | . . . . Triggered . | . . . . Disarmed . | . . . . Reprogrammed . | . . . . Reused . | . . . . Traps Extracted . | . . . . Installed . | . . . . Triggered . | . . . . Machines | -11 -10 -9 -8 ---------- Run | Yrd Mat Mat Mat Machines Disabled 1 | . . . 1 Max in Single Turn 1 | . . . 1 Garrison Access 1 | . . . 1 Machines Repaired . | . . . . Machines Dismantled . | . . . . Machines Sabotaged . | . . . . Overloaded Fab Kills . | . . . . Hacking | -11 -10 -9 -8 --------- Run | Yrd Mat Mat Mat Machines Accessed 15 | . 4 4 7 Terminals 9 | . 4 2 3 Fabricators . | . . . . Repair Stations 2 | . . 1 1 Recycling Units 2 | . . 1 1 Scanalyzers 1 | . . . 1 Garrison Access 1 | . . . 1 Total Hacks 56 | . 12 23 21 Successful 36 | . 9 13 14 Failed 20 | . 3 10 7 Catastrophic 2 | . . . 2 Database Lockouts . | . . . . Manual . | . . . . Terminals 30 | . 12 12 6 Fabricators . | . . . . Repair Stations 13 | . . 7 6 Recycling Units 8 | . . 4 4 Scanalyzers 3 | . . . 3 Garrison Access 2 | . . . 2 Terminal Hacks 18 | . 9 6 3 Record 2 | . . 1 1 Prototype ID Bank 2 | . 2 . . Alert Level 6 | . 1 3 2 Unreport Threat 3 | . 1 2 . Dispatch Records 2 | . 2 . . Reinforcement Status 1 | . 1 . . Hauler Manifests 1 | . 1 . . Zone Layout 1 | . 1 . . Fabricator Hacks . | . . . . Repair Station Hacks 11 | . . 6 5 Scan Component 6 | . . 3 3 Repair 5 | . . 3 2 Recycling Unit Hacks 4 | . . 1 3 Process 1 | . . . 1 Report Inventory 2 | . . 1 1 Retrieve Matter 1 | . . . 1 Scanalyzer 2 | . . . 2 Insert Component 1 | . . . 1 Analyze 1 | . . . 1 Garrison Access Hacks 1 | . . . 1 Seal Access 1 | . . . 1 Unauthorized Hacks . | . . . . Terminals . | . . . . Fabricators . | . . . . Repair Stations . | . . . . Recycling Units . | . . . . Scanalyzers . | . . . . Garrison Access . | . . . . Data Cores Recovered . | . . . . Used . | . . . . Hacking Detections 13 | . 4 3 6 Full Trace Events 2 | . . 1 1 Feedback Events . | . . . . Feedback Blocked . | . . . . Robot Schematics Acquired . | . . . . Robots Built . | . . . . Authchips . | . . . . Time . | . . . . Total Robot Build Rating . | . . . . Part Schematics Acquired 1 | . . . 1 Parts Built . | . . . . Authchips . | . . . . Time . | . . . . Total Part Build Rating . | . . . . Parts Repaired 5 | . . 3 2 Time 148 | . . 90 58 Parts Recycled . | . . . . Recycled Matter 18 | . . . 18 Retrieved Matter 18 | . . . 18 Retrieved Components . | . . . . Parts Scanalyzed 1 | . . . 1 Part Schematics Acquired 1 | . . . 1 Parts Damaged . | . . . . Bothacking | -11 -10 -9 -8 ------------ Run | Yrd Mat Mat Mat Used RIF Installer . | . . . . Robots Hacked . | . . . . Non-combat . | . . . . Combat . | . . . . Robot Hacks Applied . | . . . . Relay Couplers Released . | . . . . Fabnet Peak Effective % . | . . . . Robots Rewired . | . . . . Allies Hacked . | . . . . Hacks Repelled . | . . . . Allies | -11 -10 -9 -8 -------- Run | Yrd Mat Mat Mat Total Allies . | . . . . Largest Group . | . . . . Highest-Rated Group . | . . . . Highest-Rated Ally . | . . . . Total Orders . | . . . . Ally Attacks . | . . . . Total Damage . | . . . . Kills . | . . . . Allies Corrupted . | . . . . Allies Melted . | . . . . Intel | -11 -10 -9 -8 ------- Run | Yrd Mat Mat Mat Robot Analysis Total . | . . . . Derelict Logs Recovered . | . . . . Drone Launches . | . . . . Drone Recoveries . | . . . . Exploration | -11 -10 -9 -8 ------------- Run | Yrd Mat Mat Mat Turns Passed 2073 | 117 521 819 616 Spaces Moved 1092 | 67 265 386 374 Core 83 | 5 . . 78 Treads 447 | 62 265 120 . Legs 562 | . . 266 296 Wheels . | . . . . Hover . | . . . . Flight . | . . . . Fastest Speed 50 | 50 160 120 50 Average Speed 131 | 151 160 132 107 Slowest Speed 190 | 160 160 160 190 Overloaded Moves . | . . . . Propulsion Burnouts . | . . . . Robots Hopped . | . . . . Cave-ins Triggered . | . . . . Exploration Rate (%) 22 | 5 30 30 26 Regions Visited 3 Branch Regions . Pre-discovered Areas . | . . . . Known Exits Taken 1 | . . 1 . Unknown Exits Taken 2 | 1 1 . . Scrap Searched . | . . . . Spaces Dug . | . . . . Terrain Destroyed . | . . . . Melee . | . . . . Projectile . | . . . . AOE . | . . . . Terrain Rammed . | . . . . Walls Destroyed . | . . . . Machines Disabled . | . . . . Actions | -11 -10 -9 -8 --------- Run | Yrd Mat Mat Mat Total 1535 | 82 308 604 541 Wait 203 | . 1 102 100 Move 1089 | 66 264 385 374 Hop . | . . . . Pick Up 52 | 10 12 17 13 Fast Attach 5 | . . 1 4 Attach 20 | 6 1 6 7 Detach . | . . . . Swap 24 | . 2 17 5 Drop 33 | . 1 24 8 Fire 107 | . 27 52 28 Melee . | . . . . Ram 2 | . . . 2 Kick . | . . . . Crush . | . . . . Escape Stasis . | . . . . Rewire . | . . . . Trap . | . . . . Miscellaneous . | . . . . Route ------- -11/Scrapyard -10/Materials -9/Materials -8/Materials History --------- Turn | Location | Event 38 | -11/Scrapyard | Discovered new exit (range 15) 118 | -11/Scrapyard | Entered Materials 309 | -10/Materials | Build established: Mutant 391 | -10/Materials | Discovered new exit (range 10) 639 | -10/Materials | Entered another Materials area 639 | -9/Materials | Evolved 2 slots: Propulsion x1, Weapon x1 931 | -9/Materials | Repaired Hvy. Assault Rifle 969 | -9/Materials | Repaired Lgt. Armor Plating 1003 | -9/Materials | Repaired Imp. Ion Engine 1322 | -9/Materials | Build established: Scavenger-Skirmisher 1323 | -9/Materials | Discovered new exit (range 16) 1457 | -9/Materials | Identified exit to Materials 1458 | -9/Materials | Entered another Materials area 1458 | -8/Materials | Evolved 2 slots: Power x1, Utility x1 1656 | -8/Materials | Repaired Sensor Array 1689 | -8/Materials | Repaired Imp. Aluminum Leg 2022 | -8/Materials | Core integrity fell below 50% 2033 | -8/Materials | Core integrity fell below 20% 2062 | -8/Materials | Lost 15 parts (2p4n4u5w) 2074 | -8/Materials | Destroyed by Y-45 Defender with Beam Rifle Last Messages --------------- 02041_ Triggered Blade Trap. 02041_ Massive razor-sharp blades shoot up from within the floor. 02049_ Acquired Minigun. 02051_ ALERT: Hostiles spotted, dispatching reinforcements to Terminal M001. 02051_ Acquired Minigun. 02055_ Connecting with Scanalyzer... >>Insert(Minigun) Scanning Minigun... Ready to analyze. >>Scanalyze Scanning: Minigun... Schematic downloaded. 02059_ O-16 Technician: "IFF HANDSHAKE FAILED. SECURING TERMINAL." 02063_ ALERT: Hostiles spotted, dispatching reinforcements to Terminal M004. 02066_ Slammed into G-47 Trooper. 02070_ Imp. Terrain Scanner destroyed. Map ----- +----------------------------------------------------+ | ???????? ??????????????????????????????????????? | | ???????? ??????????????????????????????????????? | | ????????# #??????????????????????????????????????? | | ????????# #??????????????????????????????????????? | | ????????# #??????????????????????????????????????? | | ????????#%#??????????????????????????????????????? | | ######### ###????????????????????????????????????? | | ###############??????????????????????? | | % =!%*!% #??????????????????????? | | % =%* % ! #??????????????????????? | | ####### !%*H #??????????????????????? | | ??????# ######"#### ########???????????????? | | ??????## ##?????????# #! #???????????????? | | ???????# #??????????# #*%**% ##??????????????? | | ???????# ^^#??????????# u!/*=* !"#??????????????? | | ???????# +??????????# #%!=* ##??????????????? | | ???????# # ?????????# #%% =#???????????????? | | ???????# ##?????????#u #= % #???????????????? | | ???????# #??????????# ########### ????????? | | ??????? ??????????# k ????????? | | ??????? ??????????# ????????? | | ?????? ??????????# ????????? | | ??????? ??????????# ????????? | | ??????????????????????# ????????? | | ????????????????????? # #############+###??????? | | ?????????????????? ???# @#????? ?? ? ? ?????????? | | ?????????????????? ???# %=###????"???"????? ?????? | | ??????????????????????# ! #???????????? ?????????? | | ????????????????????#?# #??#???"??"????????????? | | ????????????#????????## ##????????????? ??????#? | | ??????????????????????# Y #?#?????????? "??? ##??? | | ?????????????????"? ### u###?????????"????? ###?? | | ??????????????????? # #????"????"?"????????? | | ??????????????"?????# gY ##?????? ????? ??????? | | ??????????????? ??"?# ##############??#??#?# | | ?????????? ??"??????# + ! ##??????? | | ????????????????????# ## ! #???????? | | ?????????????????? ?# ## #???????? | | ???????????????? ???# ## "" "" #???????? | | ??????????????# ?#??########## [ ""S"" #???#???? | | ?????????????????????????#???# ] """" ##??????? | | ?????????????????????#???????# #???? ??? | | ????????????????????#???###########+######?#?????? | | ????????????????#??????????#????# #??#??#????? | | ?????????????????#???#?????#??### ?? ? | | ?????????????????????#??????????# ? | | ??????????????????????#?#???#?#?# | | ????????????????????????###?#???# ###+######## | | ????????????????????????##??????#######??? ?????? | | ??????????????????????? ?????? ????????? ?"" ???? | +----------------------------------------------------+ Best States ------------- Heat Dissipation 85 Energy Generation 23 Energy Capacity 460 Matter Stores 334 Matter Capacity 500 Sight Range 16 Robot Scan Range 14 Terrain Scan Range 16 Terrain Scan Density 85 Armor Coverage 150 Evasion (%) 55 Recoil Reduction 3 Item Schematics ----------------- Minigun | -8/Materials | Scanalyzed Robot Schematics ------------------ None Fabricated ------------ Nothing Alien Tech Used ----------------- None Achievements -------------- Loot Pinata Challenges ------------ None Game ------ Seed DeliveryHoverDesublimator Manual? 0 Play Time 00:55:00 Cumulative 11.6 hours Start 2024.04.16 @ 20:48:20 End 2024.04.16 @ 21:43:22 Sessions 1 Manual Loads 0 Difficulty Rogue Special Mode None Game No. 5 Rogue 5 Adventurer 0 Explorer 0 Win Type - Total 0 Types 0/0/0/0/0/0/0/0/0 Lore% 11 Gallery% 13 Achievement% 12 Wizard Run 0 Options --------- Layout 1 ASCII 0 Keyboard 0 Movement Arrows Keybinds 0 Fullscreen 1 Font 24/Smallcaps Map View 50x35 Zoom Use 0% Tactical HUD 1 Map Filters NONE Filters NONE Steam 1 RUN: 4544721b-8dfe-47ba-bc05-538ff8c540ed